bitfinex-derivatives/quotes_ETHF0:USTF0_20260117
["timestamp","ask_amount","ask_price","bid_price","bid_amount"]
[1768613980233,0.9605701,3292.4,3291.0,0.00333418]
[1768613980426,0.9605701,3292.3,3291.0,0.00333418]
[1768613980725,0.9605701,3292.2,3291.0,0.00333418]
[1768613980925,0.9605701,3292.1,3291.0,0.00333418]
[1768613981125,0.1483189,3292.5,3291.0,0.00333418]
[1768613981325,0.96055988,3292.4,3291.0,0.00333418]
[1768613981527,0.96055988,3292.3,3291.0,0.00333418]
[1768613981726,0.96055988,3292.2,3291.0,0.00333418]
[1768613981927,0.96055988,3292.1,3291.0,0.00333418]
[1768613982126,0.1483189,3292.5,3291.0,0.00333418]
[1768613982327,0.96055402,3292.4,3291.0,0.00333418]
[1768613982522,0.96055402,3292.3,3291.0,0.00333418]
[1768613982735,0.96055402,3292.2,3291.0,0.00333418]
[1768613982933,0.96055402,3292.1,3291.0,0.00333418]
[1768613983135,0.1483189,3292.5,3291.0,0.00333418]
[1768613983326,0.9605483,3292.4,3291.0,0.00333418]
[1768613983527,0.9605483,3292.3,3291.0,0.00333418]
[1768613983822,0.9605483,3292.2,3291.0,0.00333418]
[1768613984026,0.9605483,3292.1,3291.0,0.00333418]
[1768613984226,0.1483189,3292.5,3291.0,0.00333418]
[1768613984427,0.96053814,3292.4,3291.0,0.00333418]
[1768613984629,0.96053814,3292.3,3291.0,0.00333418]
[1768613984833,0.96053814,3292.2,3291.0,0.00333418]
[1768613985034,0.96053814,3292.1,3291.0,0.00333418]
[1768613985335,0.1483189,3292.5,3291.0,0.00333418]
[1768613985527,0.96053643,3292.4,3291.0,0.00333418]
[1768613985728,0.96053643,3292.3,3291.0,0.00333418]
[1768613985932,0.96053643,3292.2,3291.0,0.00333418]
[1768613986132,0.96053643,3292.1,3291.0,0.00333418]
[1768613986336,0.1483189,3292.5,3291.0,0.00333418]
[1768613986541,0.96053399,3292.4,3291.0,0.00333418]
[1768613986743,0.96053399,3292.3,3291.0,0.00333418]
[1768613986939,0.96053399,3292.2,3291.0,0.00333418]
[1768613987133,0.96053399,3292.1,3291.0,0.00333418]
[1768613987326,0.1483189,3292.5,3291.0,0.00333418]
[1768613987526,0.96053384,3292.4,3291.0,0.00333418]
[1768613987731,0.96053384,3292.3,3291.0,0.00333418]
[1768613987932,0.96053384,3292.2,3291.0,0.00333418]
[1768613988128,0.96053384,3292.1,3291.0,0.00333418]
[1768613988432,0.1483189,3292.5,3291.0,0.00333418]
[1768613988633,0.96053449,3292.4,3291.0,0.00333418]
[1768613988833,0.96053449,3292.3,3291.0,0.00333418]
[1768613989038,0.96053449,3292.2,3291.0,0.00333418]
[1768613989240,0.96053449,3292.1,3291.0,0.00333418]
[1768613989441,0.1483189,3292.5,3291.0,0.00333418]
[1768613989644,0.96053603,3292.4,3291.0,0.00333418]
[1768613989938,0.96053603,3292.3,3291.0,0.00333418]
[1768613990137,0.96053603,3292.2,3291.0,0.00333418]
[1768613990332,0.96053603,3292.1,3291.0,0.00333418]
[1768613990546,0.1483189,3292.5,3291.0,0.00333418]
[1768613990735,0.96053898,3292.4,3291.0,0.00333418]
[1768613991033,0.96053898,3292.3,3291.0,0.00333418]
[1768613991231,0.96053898,3292.2,3291.0,0.00333418]
[1768613991429,0.96053898,3292.1,3291.0,0.00333418]
[1768613991633,0.1483189,3292.5,3291.0,0.00333418]
[1768613991830,0.96054566,3292.4,3291.0,0.00333418]
[1768613992030,0.96054566,3292.3,3291.0,0.00333418]
[1768613992243,0.96054566,3292.2,3291.0,0.00333418]
[1768613992542,0.96054566,3292.1,3291.0,0.00333418]
[1768613992743,0.1483189,3292.5,3291.0,0.00333418]
[1768613992942,0.96055204,3292.4,3291.0,0.00333418]
[1768613993145,0.96055204,3292.3,3291.0,0.00333418]
[1768613993346,0.96055204,3292.2,3291.0,0.00333418]
[1768613993541,0.96055204,3292.1,3291.0,0.00333418]
[1768613993843,0.1483189,3292.5,3291.0,0.00333418]
[1768613994042,0.96055958,3292.4,3291.0,0.00333418]
[1768613994231,0.96055958,3292.3,3291.0,0.00333418]
[1768613994532,0.96055958,3292.2,3291.0,0.00333418]
[1768613994734,0.96055958,3292.1,3291.0,0.00333418]
[1768613994933,0.1483189,3292.5,3291.0,0.00333418]
[1768613995234,0.96056249,3292.4,3291.0,0.00333418]
[1768613995431,0.96056249,3292.3,3291.0,0.00333418]
[1768613995645,0.96056249,3292.2,3291.0,0.00333418]
[1768613995847,0.96056249,3292.1,3291.0,0.00333418]
[1768613996044,0.1483189,3292.5,3291.0,0.00333418]
[1768613996244,0.96057025,3292.4,3291.0,0.00333418]
[1768613996435,0.96057025,3292.3,3291.0,0.00333418]
[1768613996639,0.96057025,3292.2,3291.0,0.00333418]
[1768613996836,0.96057025,3292.1,3291.0,0.00333418]
[1768613997039,0.16376775,3292.4,3291.0,0.00333418]
[1768613997239,0.96057737,3292.3,3291.0,0.00333418]
[1768613997444,0.96057737,3292.2,3291.0,0.00333418]
[1768613997639,0.96057737,3292.1,3291.0,0.00333418]
[1768613997835,0.16376775,3292.4,3291.0,0.00333418]
[1768613998148,1.12433333,3292.3,3291.0,0.00333418]
[1768613998349,0.96056558,3292.2,3291.0,0.00333418]
[1768613998645,0.96056558,3292.1,3291.0,0.00333418]
[1768613998846,0.16376775,3292.3,3291.0,0.00333418]
[1768613999046,0.96055846,3292.2,3291.0,0.00333418]
[1768613999256,0.96055846,3292.1,3291.0,0.00333418]
[1768613999444,0.96055846,3292.0,3291.0,0.00333418]
[1768613999645,0.16376775,3292.3,3291.0,0.00333418]
[1768613999847,0.9605394,3292.2,3291.0,0.00333418]
[1768614000143,0.9605394,3292.1,3291.0,0.00333418]
[1768614000344,0.9605394,3292.0,3291.0,0.00333418]
[1768614000551,0.16376775,3292.3,3291.0,0.00333418]
[1768614000752,0.96055139,3292.2,3291.0,0.00333418]
[1768614000954,0.96055139,3292.1,3291.0,0.00333418]
[1768614001252,0.16376775,3292.3,3291.0,0.00333418]
[1768614001253,0.96055139,3292.0,3291.0,0.00333418]
[1768614001444,0.16376775,3292.3,3291.0,0.00333418]
[1768614001644,0.96033549,3292.2,3291.0,0.00333418]
[1768614001844,0.96033549,3292.1,3291.0,0.00333418]
[1768614002040,0.96033549,3292.0,3291.0,0.00333418]
[1768614002245,0.16376775,3292.3,3291.0,0.00333418]
[1768614002450,0.96034072,3292.2,3291.0,0.00333418]
[1768614002747,0.96034072,3292.1,3291.0,0.00333418]
[1768614002951,0.96034072,3292.0,3291.0,0.00333418]
[1768614003148,0.16376775,3292.2,3291.0,0.00333418]
[1768614003450,0.96028098,3292.1,3291.0,0.00333418]
[1768614003649,0.96028098,3292.0,3291.0,0.00333418]
[1768614003955,0.16376775,3292.2,3291.0,0.00333418]
[1768614004259,0.960276,3292.1,3291.0,0.00333418]
[1768614004453,0.960276,3292.0,3291.0,0.00333418]
[1768614004654,0.16376775,3292.2,3291.0,0.00333418]
[1768614004852,0.9604332,3292.1,3291.0,0.00333418]
[1768614005053,0.9604332,3292.0,3291.0,0.00333418]
[1768614005252,0.16376775,3292.0,3291.0,0.00333418]
[1768614006256,0.96026962,3291.9,3291.0,0.00333418]
[1768614006552,0.16376775,3292.0,3291.0,0.00333418]
[1768614006758,0.96026318,3291.9,3291.0,0.00333418]
[1768614006961,0.16376775,3292.0,3291.0,0.00333418]
[1768614007160,0.96026476,3291.9,3291.0,0.00333418]
[1768614007457,0.16376775,3292.0,3291.0,0.00333418]
[1768614007658,0.9601514,3291.9,3291.0,0.00333418]
[1768614007851,0.16376775,3292.0,3291.0,0.00333418]
[1768614008058,1.12391653,3291.9,3290.3,0.15890711]
[1768614008254,0.96014878,3291.8,3290.3,0.15890711]
[1768614008450,0.16376775,3291.9,3290.3,0.15890711]
[1768614008763,0.95987063,3291.8,3290.3,0.15890711]
[1768614008952,0.16376775,3291.9,3290.3,0.15890711]
[1768614009152,0.95987048,3291.8,3290.3,0.1614]
[1768614009353,0.16376775,3291.9,3290.3,0.1614]
[1768614009562,0.9597099,3291.8,3290.3,0.1614]
[1768614009762,0.16376775,3291.9,3290.3,0.1614]
[1768614010060,0.9597106,3291.8,3290.3,0.1614]
[1768614010261,0.16376775,3291.9,3290.3,0.1614]
[1768614010450,0.95959165,3291.8,3290.3,0.1614]
[1768614010651,0.16376775,3291.9,3290.3,0.1614]
[1768614010847,0.95958993,3291.8,3290.3,0.1614]
[1768614011159,0.16376775,3291.9,3290.3,0.00249289]
[1768614011356,0.16376775,3291.7,3290.3,0.00249289]
[1768614011956,0.95936973,3291.6,3290.3,0.00249289]
[1768614012157,0.16376775,3291.4,3290.3,0.00249289]
[1768614013965,3.20376775,3292.0,3290.3,0.00249289]
[1768614014161,1.12251867,3291.9,3290.3,0.00249289]
[1768614014359,0.95875092,3291.8,3290.3,0.00249289]
[1768614014660,0.95875092,3291.7,3290.3,0.00249289]
[1768614014860,0.95875092,3291.6,3290.3,0.00249289]
[1768614015065,0.16376775,3291.9,3290.3,0.00249289]
[1768614015262,0.95840645,3291.8,3290.3,0.00249289]
[1768614015464,0.95840645,3291.7,3290.3,0.00249289]
[1768614015663,0.95840645,3291.6,3290.3,0.00249289]
[1768614015852,0.16376775,3291.9,3290.3,0.00249289]
[1768614016052,0.95838807,3291.8,3290.3,0.00249289]
[1768614016357,0.95838807,3291.7,3290.3,0.00249289]
[1768614016658,0.95838807,3291.6,3290.3,0.00249289]
[1768614016853,0.16376775,3291.9,3290.3,0.00249289]
[1768614017154,0.95825708,3291.8,3290.3,0.00249289]
[1768614017359,0.95825708,3291.7,3290.3,0.00249289]
[1768614017550,0.16376775,3291.9,3290.3,0.00249289]
[1768614017551,0.95825708,3291.6,3290.3,0.00249289]
[1768614017767,0.16376775,3291.9,3290.3,0.00249289]
[1768614017969,0.95815301,3291.8,3290.3,0.00249289]
[1768614018265,0.95815301,3291.7,3290.3,0.00249289]
[1768614018467,0.95815301,3291.6,3290.3,0.00249289]
[1768614018668,0.16376775,3291.9,3290.3,0.00249289]
[1768614018862,0.95806803,3291.8,3290.3,0.00249289]
[1768614019062,0.95806803,3291.7,3290.3,0.00249289]
[1768614019265,0.16376775,3291.9,3290.3,0.00249289]
[1768614019463,0.95800589,3291.8,3290.3,0.00249289]
[1768614019664,0.95800589,3291.7,3290.3,0.00249289]
[1768614019857,0.16376775,3291.9,3290.3,0.00249289]
[1768614020054,0.95800635,3291.8,3290.3,0.00249289]
[1768614020259,0.95800635,3291.7,3290.3,0.00249289]
[1768614020461,0.16376775,3291.9,3290.3,0.00249289]
[1768614020655,0.9579635,3291.8,3290.3,0.00249289]
[1768614020857,0.9579635,3291.7,3290.3,0.00249289]
[1768614021057,0.16376775,3291.9,3290.3,0.00249289]
[1768614021257,0.16376775,3291.7,3290.3,0.00249289]
[1768614021465,0.16376775,3291.5,3290.3,0.00249289]
[1768614031770,0.15392297,3291.9,3290.3,0.00249289]
[1768614031970,0.95831956,3291.8,3290.3,0.00249289]
[1768614032274,0.95831956,3291.7,3290.3,0.00249289]
[1768614032475,0.95831956,3291.6,3290.3,0.00249289]
[1768614032670,0.95831956,3291.5,3290.3,0.00249289]
[1768614032876,0.15392297,3291.8,3290.3,0.00249289]
[1768614033180,1.11238365,3291.7,3290.3,0.00249289]
[1768614033384,0.95846068,3291.6,3290.3,0.00249289]
[1768614037292,0.95846068,3291.6,3290.5,0.98572692]
[1768614047294,0.15392297,3292.5,3291.2,0.98572692]
[1768614047503,0.2807157,3292.4,3291.2,0.98572692]
[1768614047807,1.84492297,3292.5,3291.0,0.98572692]
[1768614048108,1.2494878,3292.4,3291.0,0.98572692]
[1768614048300,0.98572692,3292.4,3291.0,0.98572692]
[1768614054400,1.84492297,3292.5,3290.7,0.15602912]
[1768614054401,0.15392297,3292.5,3290.7,0.15602912]
[1768614054711,1.691,3292.4,3291.1,0.98572692]
[1768614056613,0.15392297,3292.5,3291.1,0.98572692]
[1768614056815,1.84492297,3292.5,3291.3,0.98572692]
[1768614059317,0.9549885,3292.4,3291.3,0.98572692]
[1768614059513,0.9549885,3292.3,3291.3,0.98572692]
[1768614059709,0.9549885,3292.2,3291.3,0.98572692]
[1768614059909,0.9549885,3292.1,3291.3,0.98572692]
[1768614060118,1.84492297,3292.5,3291.3,0.98572692]
[1768614060317,0.95497638,3292.4,3291.3,0.98572692]
[1768614060518,0.95497638,3292.3,3291.3,0.98572692]
[1768614060719,0.95497638,3292.2,3291.3,0.98572692]
[1768614060919,1.84492297,3292.5,3291.3,0.98572692]
[1768614060920,0.95497638,3292.1,3291.3,0.98572692]
[1768614061119,1.84492297,3292.5,3291.3,0.98572692]
[1768614061322,0.9549635,3292.4,3291.3,0.98572692]
[1768614061622,0.9549635,3292.3,3291.1,0.98572692]
[1768614061919,0.9549635,3292.2,3291.1,0.98572692]
[1768614062120,0.9549635,3292.1,3291.1,0.98572692]
[1768614062315,2.83064989,3292.5,3291.1,0.98572692]
[1768614062525,0.95491864,3292.4,3291.1,0.98572692]
[1768614062816,0.95491864,3292.3,3291.1,0.98572692]
[1768614063018,0.95491864,3292.2,3291.1,0.98572692]
[1768614063216,0.95491864,3292.1,3291.1,0.98572692]
[1768614063416,2.83064989,3292.5,3291.1,0.98572692]
[1768614063619,0.95487977,3292.4,3291.1,0.98572692]
[1768614063822,0.95487977,3292.3,3291.1,0.98572692]
[1768614064023,0.95487977,3292.2,3291.0,0.15923349]
[1768614064225,0.95487977,3292.2,3290.9,0.98572692]
[1768614069319,0.95487977,3292.1,3290.9,0.98572692]
[1768614069521,2.61972692,3292.4,3290.9,0.98572692]
[1768614069818,0.95347312,3292.3,3290.9,0.98572692]
[1768614070022,0.95347312,3292.2,3290.9,0.98572692]
[1768614070226,0.95347312,3292.1,3290.9,0.98572692]
[1768614070425,2.61972692,3292.4,3290.9,0.98572692]
[1768614070627,0.9535552,3292.3,3290.9,0.98572692]
[1768614070823,0.9535552,3292.2,3290.9,0.98572692]
[1768614071022,0.9535552,3292.1,3290.9,0.98572692]
[1768614071229,2.61972692,3292.4,3290.9,0.98572692]
[1768614071428,0.953653,3292.3,3290.9,0.98572692]
[1768614071631,0.953653,3292.2,3290.9,0.98572692]
[1768614071932,0.953653,3292.1,3291.0,0.98572692]
[1768614072128,0.95375084,3292.0,3291.0,0.98572692]
[1768614072330,2.61972692,3292.4,3291.0,0.98572692]
[1768614072528,0.95377282,3292.3,3291.0,0.98572692]
[1768614072830,0.95377282,3292.2,3291.0,0.98572692]
[1768614073032,0.95377282,3292.1,3291.0,0.98572692]
[1768614073232,0.95377282,3292.0,3291.0,0.98572692]
[1768614073423,2.61972692,3292.4,3291.0,0.98572692]
[1768614073623,0.9539131,3292.3,3291.0,0.98572692]
[1768614073824,0.9539131,3292.2,3291.0,0.98572692]
[1768614074026,0.9539131,3292.1,3291.0,0.98572692]
[1768614074330,0.9539131,3292.0,3291.0,0.98572692]
[1768614074535,2.61972692,3292.4,3291.0,0.98572692]
[1768614074834,0.9540893,3292.3,3291.0,0.98572692]
[1768614075027,0.9540893,3292.2,3291.0,0.98572692]
[1768614075232,0.9540893,3292.1,3291.0,0.98572692]
[1768614075435,0.9540893,3292.0,3291.0,0.98572692]
[1768614075632,0.98572692,3292.2,3290.8,0.98572692]
[1768614075938,0.95430815,3292.1,3290.8,0.98572692]
[1768614076130,0.95430815,3292.0,3290.8,0.98572692]
[1768614076330,0.98572692,3292.2,3290.8,0.98572692]
[1768614076530,0.95461627,3292.1,3290.8,0.98572692]
[1768614076732,0.95461627,3292.0,3290.8,0.98572692]
[1768614076933,0.98572692,3292.2,3290.8,0.98572692]
[1768614077128,0.95461669,3292.1,3290.8,0.98572692]
[1768614077329,0.95461669,3292.0,3290.7,0.98572692]
[1768614077534,0.95461669,3291.9,3290.7,0.98572692]
[1768614077838,0.16466382,3292.3,3290.7,0.98572692]
[1768614078045,1.94098735,3292.2,3290.7,0.98572692]
[1768614078243,0.95526043,3292.1,3290.7,0.98572692]
[1768614080043,0.95526043,3292.1,3290.9,0.98572692]
[1768614080347,0.95526043,3292.1,3290.6,0.15923349]
[1768614080646,0.95526043,3292.1,3290.8,0.98572692]
[1768614087744,0.98572692,3291.9,3290.6,0.15923349]
[1768614087951,0.95526043,3291.8,3290.5,0.15202]
[1768614092547,1.94098735,3291.7,3290.4,0.98572692]
[1768614092748,0.95526043,3291.6,3290.4,0.98572692]
[1768614092956,0.98572692,3291.7,3290.4,0.98572692]
[1768614093257,0.95460171,3291.6,3290.4,0.98572692]
[1768614093554,0.98572692,3291.7,3290.4,0.98572692]
[1768614093757,0.95442674,3291.6,3290.4,0.98572692]
[1768614093955,0.98572692,3291.7,3290.4,0.98572692]
[1768614094147,0.95442658,3291.6,3290.4,0.98572692]
[1768614094341,0.98572692,3291.9,3290.4,0.98572692]
[1768614094553,0.95423738,3291.8,3290.4,0.98572692]
[1768614094755,0.95423738,3291.7,3290.4,0.98572692]
[1768614094957,0.95423738,3291.6,3290.5,0.98572692]
[1768614095153,0.98572692,3291.9,3290.5,0.98572692]
[1768614095355,0.95423013,3291.8,3290.5,0.98572692]
[1768614095557,0.95423013,3291.7,3290.5,0.98572692]
[1768614095752,0.95423013,3291.6,3290.5,0.98572692]
[1768614095953,0.98572692,3291.9,3290.5,0.98572692]
[1768614096253,0.95411283,3291.8,3290.5,0.98572692]
[1768614096443,0.95411283,3291.7,3290.5,0.98572692]
[1768614096642,0.95411283,3291.6,3290.5,0.98572692]
[1768614096846,0.98572692,3291.9,3290.3,0.00249289]
[1768614097042,0.98572692,3291.3,3290.3,0.00249289]
[1768614099456,0.16406706,3291.7,3290.3,0.00249289]
[1768614099659,1.11759275,3291.6,3290.3,0.00249289]
[1768614099860,1.11759275,3291.5,3290.3,0.00249289]
[1768614100060,0.16406706,3291.5,3290.3,0.00249289]
[1768614100258,0.95346292,3291.4,3290.3,0.00249289]
[1768614100560,0.16406706,3291.5,3290.3,0.00249289]
[1768614100858,0.95326086,3291.4,3290.3,0.00249289]
[1768614101163,0.16406706,3291.5,3290.3,0.00249289]
[1768614101360,0.9532619,3291.4,3290.3,0.00249289]
[1768614101561,0.16406706,3291.5,3290.3,0.00249289]
[1768614101856,0.95310047,3291.4,3290.3,0.00249289]
[1768614102162,0.16406706,3291.5,3290.3,0.00249289]
[1768614102361,0.95310133,3291.4,3290.3,0.00249289]
[1768614102561,0.16406706,3291.5,3290.3,0.00249289]
[1768614102762,0.95297221,3291.4,3290.3,0.00249289]
[1768614102965,0.16406706,3291.5,3290.3,0.00249289]
[1768614103156,0.95297256,3291.4,3290.3,0.00249289]
[1768614103455,0.16406706,3291.9,3290.3,0.00249289]
[1768614103764,0.16406706,3291.7,3290.3,0.00249289]
[1768614103965,0.95287387,3291.6,3290.3,0.00249289]
[1768614104263,0.95287387,3291.5,3290.3,0.00249289]
[1768614104462,0.95287387,3291.4,3290.3,0.00249289]
[1768614104664,0.16406706,3291.7,3290.3,0.00249289]
[1768614104861,0.95280085,3291.6,3290.3,0.00249289]
[1768614105057,0.95280085,3291.5,3290.3,0.00249289]
[1768614105258,0.95280085,3291.4,3290.3,0.00249289]
[1768614105457,0.16406706,3291.7,3290.3,0.00249289]
[1768614105658,0.95274076,3291.6,3290.3,0.00249289]
[1768614105861,0.95274076,3291.5,3290.3,0.00249289]
[1768614106063,0.95274076,3291.4,3290.3,0.00249289]
[1768614106366,0.16406706,3291.7,3290.3,0.00249289]
[1768614106664,0.95270383,3291.6,3290.3,0.00249289]
[1768614106864,0.95270383,3291.5,3290.3,0.00249289]
[1768614107066,0.95270383,3291.4,3290.3,0.00249289]
[1768614107265,0.16406706,3291.7,3290.3,0.00249289]
[1768614107466,0.95268038,3291.6,3290.3,0.00249289]
[1768614107668,0.95268038,3291.5,3290.3,0.00249289]
[1768614107870,0.95268038,3291.4,3290.3,0.00249289]
[1768614108167,0.16406706,3291.7,3290.3,0.00249289]
[1768614108367,0.95268214,3291.6,3290.3,0.00249289]
[1768614108667,0.95268214,3291.5,3290.3,0.00249289]
[1768614108852,0.95268214,3291.4,3290.3,0.00249289]
[1768614109052,0.16406706,3291.7,3290.3,0.00249289]
[1768614109252,0.95267682,3291.6,3290.3,0.00249289]
[1768614109452,0.95267682,3291.5,3290.3,0.00249289]
[1768614109652,0.95267682,3291.4,3290.3,0.00249289]
[1768614109860,0.16406706,3291.5,3290.3,0.00249289]
[1768614110054,1.11673969,3291.4,3290.3,0.00249289]
[1768614110267,0.16406706,3291.4,3290.3,0.00249289]
[1768614115366,0.95306937,3291.3,3290.3,0.00249289]
[1768614115665,0.16406706,3291.4,3290.3,0.00249289]
[1768614115865,0.95306939,3291.3,3290.3,0.00249289]
[1768614116065,0.16406706,3291.4,3290.3,0.00249289]
[1768614116369,0.95306931,3291.3,3290.3,0.00249289]
[1768614116669,0.16406706,3291.4,3290.3,0.00249289]
[1768614116870,0.95322382,3291.3,3290.3,0.00249289]
[1768614117168,0.16406706,3291.4,3290.3,0.00249289]
[1768614117362,0.95322349,3291.3,3290.3,0.00249289]
[1768614117560,0.16406706,3291.4,3290.3,0.00249289]
[1768614117757,0.95338798,3291.3,3290.3,0.00249289]
[1768614117956,0.16406706,3291.4,3290.3,0.00249289]
[1768614118156,0.95338789,3291.3,3290.3,0.00249289]
[1768614118371,0.16406706,3291.4,3290.3,0.00249289]
[1768614118572,0.95347373,3291.3,3290.3,0.00249289]
[1768614118759,0.16406706,3291.4,3290.3,0.00249289]
[1768614119056,0.95347371,3291.3,3290.3,0.00249289]
[1768614119260,0.16406706,3291.4,3290.3,0.00249289]
[1768614119465,0.95357811,3291.3,3290.3,0.00249289]
[1768614119664,0.16406706,3291.4,3290.3,0.00249289]
[1768614119863,0.95357815,3291.3,3290.3,0.00249289]
[1768614120064,0.16406706,3291.4,3290.3,0.00249289]
[1768614120267,0.95357785,3291.3,3290.3,0.00249289]
[1768614120465,0.16406706,3291.4,3290.3,0.00249289]
[1768614120661,0.9536926,3291.3,3290.3,0.00249289]
[1768614120858,0.16406706,3291.4,3290.3,0.00249289]
[1768614121074,0.9536852,3291.3,3290.3,0.00249289]
[1768614121265,0.16406706,3291.4,3290.3,0.00249289]
[1768614121462,0.95383201,3291.3,3290.3,0.00249289]
[1768614121664,0.95383201,3291.2,3290.3,0.00249289]
[1768614121863,0.16406706,3291.4,3290.3,0.00249289]
[1768614122157,0.95380993,3291.3,3290.3,0.00249289]
[1768614122362,0.95380993,3291.2,3290.3,0.00249289]
[1768614122562,0.16406706,3291.4,3290.3,0.00249289]
[1768614122764,0.95398426,3291.3,3290.3,0.00249289]
[1768614122960,0.95398426,3291.2,3290.3,0.00249289]
[1768614123173,0.16406706,3291.4,3290.3,0.00249289]
[1768614123372,0.95398375,3291.3,3290.3,0.00249289]
[1768614123573,0.95398375,3291.2,3290.3,0.00249289]
[1768614123775,0.16406706,3291.4,3290.3,0.00249289]
[1768614123974,0.95407431,3291.3,3290.3,0.00249289]
[1768614124275,0.95407431,3291.2,3290.3,0.00249289]
[1768614124575,0.16406706,3291.4,3290.3,0.00249289]
[1768614124763,0.95380211,3291.3,3290.3,0.00249289]
[1768614124963,0.95380211,3291.2,3290.3,0.00249289]
[1768614125176,0.16406706,3291.4,3290.3,0.00249289]
[1768614125376,0.95252359,3291.3,3290.3,0.00249289]
[1768614125671,0.95252359,3291.2,3290.3,0.00249289]
[1768614125873,0.16406706,3291.4,3290.3,0.00249289]
[1768614126075,0.95266239,3291.3,3290.3,0.00249289]
[1768614126286,0.95266239,3291.2,3290.3,0.00249289]
[1768614126463,0.16406706,3291.4,3290.3,0.00249289]
[1768614126662,0.95285134,3291.3,3290.3,0.00249289]
[1768614126866,0.95285134,3291.2,3290.3,0.00249289]
[1768614127066,0.95283045,3291.1,3290.3,0.00249289]
[1768614127264,0.95273081,3291.0,3289.7,0.16286999]
[1768614127463,0.95273081,3290.9,3289.7,0.16286999]
[1768614127674,0.95273081,3290.8,3289.7,0.16286999]
[1768614127877,0.16406706,3291.4,3289.7,0.16286999]
[1768614128078,1.37466132,3291.3,3289.7,0.16286999]
[1768614128266,0.9526239,3291.2,3289.7,0.16665302]
[1768614134770,1.1058995,3291.2,3289.7,0.16665302]
[1768614134971,0.9526239,3291.1,3289.7,0.16665302]
[1768614135171,0.9526239,3291.0,3289.7,0.16665302]
[1768614135371,0.9526239,3290.9,3289.7,0.16665302]
[1768614135579,0.1532756,3291.2,3289.7,0.16665302]
[1768614135877,0.95177798,3291.1,3289.7,0.16665302]
[1768614136079,0.95177798,3291.0,3289.7,0.16665302]
[1768614136281,0.95177798,3290.9,3289.7,0.16665302]
[1768614136480,0.1532756,3291.2,3289.7,0.16665302]
[1768614136781,0.95173471,3291.1,3289.7,0.16665302]
[1768614137082,0.95173471,3291.0,3289.7,0.16665302]
[1768614137283,0.95173471,3290.9,3289.7,0.16665302]
[1768614137581,0.3052456,3291.6,3289.7,0.16665302]
[1768614137776,1.22021031,3291.5,3289.7,0.16665302]
[1768614138082,0.95173558,3291.4,3289.7,0.16665302]
[1768614138380,0.95173558,3291.3,3289.7,0.16665302]
[1768614138580,0.95173558,3291.2,3289.7,0.16665302]
[1768614138783,0.95173558,3291.1,3289.7,0.16665302]
[1768614138972,0.95173558,3291.0,3289.7,0.16665302]
[1768614139168,0.3052456,3291.6,3289.7,0.16665302]
[1768614139372,1.22024991,3291.5,3289.7,0.16665302]
[1768614139573,0.9517653,3291.4,3289.7,0.16665302]
[1768614139781,0.9517653,3291.3,3290.0,0.16164184]
[1768614139974,0.9517653,3291.2,3290.0,0.16164184]
[1768614140280,0.1532756,3291.7,3290.0,0.16164184]
[1768614140481,0.95184701,3291.6,3290.0,0.16164184]
[1768614140682,0.95184701,3291.5,3290.0,0.16164184]
[1768614140878,0.95184701,3291.4,3290.0,0.16164184]
[1768614141078,0.95184701,3291.3,3290.0,0.16164184]
[1768614141291,0.95184701,3291.2,3290.0,0.16164184]
[1768614141478,0.1532756,3291.7,3290.0,0.16164184]
[1768614141680,0.95186298,3291.6,3290.0,0.16164184]
[1768614141876,0.95186298,3291.5,3290.0,0.16164184]
[1768614142083,0.95186298,3291.4,3290.0,0.16164184]
[1768614142288,0.95186298,3291.3,3290.0,0.16164184]
[1768614142584,0.95186298,3291.2,3290.0,0.16164184]
[1768614142773,0.1532756,3291.7,3290.0,0.16164184]
[1768614142976,0.95187928,3291.6,3290.0,0.16164184]
[1768614143180,0.95187928,3291.5,3290.0,0.16164184]
[1768614143381,0.95187928,3291.4,3290.0,0.16164184]
[1768614143582,0.95187928,3291.3,3290.0,0.16164184]
[1768614143783,0.95187928,3291.2,3290.0,0.16164184]
[1768614143984,0.1532756,3291.7,3290.0,0.16164184]
[1768614144290,0.15790977,3291.5,3289.9,0.15204]
[1768614144487,1.10980993,3291.4,3289.9,0.15204]
[1768614144687,0.95190016,3291.3,3289.9,0.15204]
[1768614147890,0.95190016,3291.3,3290.1,0.15542589]
[1768614148084,0.15790977,3291.8,3290.1,0.15542589]
[1768614148282,0.9520124,3291.7,3290.1,0.15542589]
[1768614148591,0.9520124,3291.6,3290.5,0.15542589]
[1768614148801,1.84890977,3292.2,3290.5,0.15542589]
[1768614148991,1.2186093,3292.1,3290.5,0.15542589]
[1768614149293,0.95003573,3292.0,3290.5,0.15542589]
[1768614149495,0.95003573,3291.9,3290.5,0.15542589]
[1768614149793,0.95003573,3291.8,3290.5,0.15542589]
[1768614150092,0.95003573,3291.7,3290.5,0.15542589]
[1768614150387,1.84890977,3292.2,3290.5,0.15542589]
[1768614150591,0.94961502,3292.1,3290.5,0.15542589]
[1768614150793,0.94961502,3292.0,3290.5,0.15542589]
[1768614150992,0.94961502,3291.9,3290.5,0.15542589]
[1768614151189,0.94961502,3291.8,3290.5,0.15542589]
[1768614151393,0.94961502,3291.7,3290.5,0.15542589]
[1768614151688,1.84890977,3292.2,3290.5,0.15542589]
[1768614151888,0.94944807,3292.1,3290.5,0.15542589]
[1768614152191,0.94944807,3292.0,3290.5,0.15542589]
[1768614152386,0.94944807,3291.9,3290.5,0.15542589]
[1768614152689,0.94944807,3291.8,3290.5,0.15542589]
[1768614152890,0.94944807,3291.7,3290.5,0.15542589]
[1768614153094,0.16467375,3292.1,3290.5,0.15542589]
[1768614153284,0.94929917,3292.0,3290.5,0.15542589]
[1768614153485,0.94929917,3291.9,3290.5,0.15542589]
[1768614153687,0.94929917,3291.8,3290.5,0.15542589]
[1768614153885,0.16467375,3292.1,3290.5,0.15542589]
[1768614153886,0.94929917,3291.7,3290.5,0.15542589]
[1768614154087,0.16467375,3292.1,3290.5,0.15542589]
[1768614154291,0.94916928,3292.0,3290.5,0.15542589]
[1768614154484,0.94916928,3291.9,3290.5,0.15542589]
[1768614154685,0.94916928,3291.8,3290.5,0.15542589]
[1768614154885,0.94916928,3291.7,3290.5,0.15542589]
[1768614155193,0.94916928,3291.6,3290.5,0.15542589]
[1768614155495,0.16467375,3292.1,3290.5,0.15542589]
[1768614155792,0.16467375,3291.9,3290.5,0.15542589]
[1768614155992,0.9482888,3291.8,3290.5,0.15542589]
[1768614156501,0.16467375,3291.7,3290.2,0.15203]
[1768614156699,0.9482888,3291.6,3290.2,0.15203]
[1768614156996,0.9482888,3291.5,3290.2,0.15203]
[1768614157197,0.16467375,3291.7,3290.2,0.15203]
[1768614157387,1.11283512,3291.6,3290.2,0.15203]
[1768614157590,0.94816137,3291.5,3290.2,0.15203]
[1768614157888,0.16467375,3291.6,3290.2,0.15203]
[1768614158090,0.94813559,3291.5,3290.2,0.15203]
[1768614158291,0.16467375,3291.6,3290.2,0.15203]
[1768614158490,0.94813559,3291.5,3290.2,0.15203]
[1768614158696,0.16467375,3291.6,3290.2,0.15203]
[1768614158894,0.94814147,3291.5,3290.2,0.15203]
[1768614159196,0.16467375,3291.6,3290.2,0.15203]